Cogmind - Beta 15 @@@ ROGUE MODE // 2025.07.14 @ 22:36:00 Player: Swonlong Result: Destroyed by G-67 Veteran with Plasma Rifle Performance ------------- Evolutions (7) 3500 Regions Visited (10) 2000 Robots Destroyed (140) 700 Value Destroyed (4712) 4712 Prototype IDs (9) 180 Alien Tech Used (0) 0 Bonus (0) 0 TOTAL SCORE: 11092 Bonus ------- None Cogmind --------- Core Integrity 0/1300 Matter 296/300 Energy 86/100 System Corruption 10% Temperature Cool (33) Movement Core (50) Location -3/Research Parts ------- > --- POWER (2) -------- (None) > --- PROPULSION (4) --- (None) > --- UTILITY (12) ----- IFF Parser > --- WEAPON (3) ------- (None) > --- INVENTORY (5) ---- Light Quantum Reactor Advanced Heat Sink Hardened Heavy Armor Plating Field Laser Peak State ------------ > --- POWER ------------ Antimatter Reactor Particle Reactor > --- PROPULSION ------- Wheel Wheel Wheel > --- UTILITY ---------- Improved Cryofiber Web Advanced Heat Sink Huge Storage Unit Machine Analyzer Improved Sensor Array Advanced Signal Interpreter Improved Targeting Computer Improved Medium Armor Plating Improved Medium Armor Plating Improved Force Field Advanced Hacking Suite System Shield > --- WEAPON ----------- Phase Gun Quantum Rifle Matter Neutralizer > --- INVENTORY -------- Antimatter Reactor Light Quantum Reactor Light Quantum Reactor Advanced Medium Treads Advanced Heat Sink Advanced Heat Sink Machine Analyzer Improved Sensor Array Advanced Sensor Array Advanced Signal Interpreter Hardened Heavy Armor Plating Improved Shock Absorption System Field Laser Gatling Laser Gatling Laser Plasma Rifle Wave Gun Phase Gun Coil Gun Railgun Micro-nuke Launcher Heavy Flail [Rating: 100] Favorites ----------- Power Light Angular Momentum Engine Engine Light Angular Momentum Engine Power Core Enhanced Nuclear Core Reactor Light Antimatter Reactor Propulsion Wheel Treads Advanced Treads Wheel Wheel Utility Machine Analyzer Device Advanced Heat Sink Storage Huge Storage Unit Processor Machine Analyzer Hackware System Shield Protection Improved Medium Armor Plating Weapon Gatling Laser Energy Gun Gatling Laser Energy Cannon Matter Neutralizer Ballistic Gun Assault Rifle Launcher Rocket Launcher Impact Weapon Heavy Flail Build | -11 -10 -9 -8 -7 -6 -6 -6 -5 -4 -3 ------- Run | Yrd Mat Mat Mat Fac Fac Was Fac Fac Fac Res Slots Evolved 14 | . . 2 2 2 2 . . 2 2 2 Power 1 | . . . . . . . . 1 . . Propulsion 2 | . . . . 1 1 . . . . . Utility 10 | . . 2 2 1 1 . . . 2 2 Weapon 1 | . . . . . . . . 1 . . Parts Attached 130 | 8 2 14 23 11 7 1 27 19 14 4 Power 24 | 1 . 2 4 2 1 1 5 4 3 1 Engine 14 | 1 . 2 2 2 1 1 2 3 . . Core 6 | . . . 2 . . . 3 1 . . Reactor 4 | . . . . . . . . . 3 1 Propulsion 31 | 2 . 2 5 3 1 . 8 6 4 . Treads 8 | . . 1 2 2 . . 2 . 1 . Leg . | . . . . . . . . . . . Wheel 23 | 2 . 1 3 1 1 . 6 6 3 . Hover . | . . . . . . . . . . . Flight . | . . . . . . . . . . . Utility 42 | 3 . 5 6 3 4 . 10 4 4 3 Device 17 | 2 . 2 1 1 1 . 3 2 3 2 Storage 4 | 1 . 1 1 . 1 . . . . . Processor 4 | . . . 1 1 . . . 1 1 . Hackware 7 | . . . 1 . 1 . 4 1 . . Protection 10 | . . 2 2 1 1 . 3 . . 1 Artifact . | . . . . . . . . . . . Weapon 33 | 2 2 5 8 3 1 . 4 5 3 . Energy Gun 26 | . 2 5 6 2 1 . 4 4 2 . Energy Cannon 1 | . . . . . . . . . 1 . Ballistic Gun 3 | 2 . . 1 . . . . . . . Ballistic Cannon . | . . . . . . . . . . . Launcher 2 | . . . 1 . . . . 1 . . Special Weapon . | . . . . . . . . . . . Impact Weapon 1 | . . . . 1 . . . . . . Slashing Weapon . | . . . . . . . . . . . Piercing Weapon . | . . . . . . . . . . . Special Melee Weapon . | . . . . . . . . . . . Unidentified Prototypes 5 | . . . . 1 . . 3 1 . . Parts Lost 65 | . . 8 8 . . 1 16 14 5 13 Power 10 | . . 1 . . . . 2 3 2 2 Propulsion 22 | . . 1 3 . . . 6 6 3 3 Utility 18 | . . 3 2 . . . 7 1 . 5 Weapon 15 | . . 3 3 . . 1 1 4 . 3 Highest Loss Streak 13 | . . 8 3 . . 1 3 4 3 13 To Critical Strikes 1 | . . . 1 . . . . . . . Average Backups 14 | 4 7 7 10 14 13 15 16 17 18 19 Power 1 | . 1 . 1 . . . 1 . 1 2 Propulsion 1 | 2 3 2 3 3 2 2 . . . . Utility 6 | . 1 2 3 4 5 7 6 10 8 7 Weapon 5 | . 1 1 3 5 5 6 8 4 7 8 Tool/Special . | . . . . . . . . . . . Unused Backups 38 | . 3 4 5 4 1 . . 3 2 16 Power 5 | . . 1 . . . . . . 1 3 Propulsion 5 | . 2 2 . 1 . . . . . . Utility 15 | . . 1 2 3 . . . 1 1 7 Weapon 13 | . 1 . 3 . 1 . . 2 . 6 Tool/Special . | . . . . . . . . . . . Average Slot Usage (%) 93 | . 100 92 95 99 93 95 89 96 95 82 Engine 4 | . 14 11 6 7 6 6 2 5 2 . Core 2 | . . . 2 . . . 3 4 1 . Reactor 1 | . . . . . . . . . 5 7 Treads 3 | . . . 3 7 6 6 9 . . . Wheel 15 | . 28 21 14 15 13 20 9 19 17 12 Device 13 | . 14 14 13 14 12 13 12 10 14 16 Storage 7 | . 14 12 18 7 6 6 6 5 5 3 Processor 10 | . . . 5 14 13 13 13 11 14 12 Hackware 8 | . . . 8 7 13 13 9 11 10 7 Protection 6 | . . 10 5 7 6 6 7 5 4 7 Energy Gun 14 | . 24 21 15 14 13 1 12 16 13 7 Peak Build Rating 100 | 9 10 13 30 41 51 50 63 72 88 100 Average Rating 51 | 5 9 11 22 38 47 46 55 66 79 85 On Entrance 37 | . 7 10 13 30 40 51 46 59 63 88 Naked Turns 27 | . . . . . . . . . . 27 Heaviest Build 165 | 15 17 26 46 47 101 101 110 124 146 165 Greatest Support 56 | 26 26 26 46 26 36 36 50 56 42 30 Greatest Overweight (x) 10 | 1 . . 3 2 5 2 10 5 5 5 Average Overweight (x) 2 | . . . . 1 3 2 4 2 3 3 Largest Inventory Capacity 25 | 8 8 8 15 15 25 25 25 25 25 25 Average Capacity 20 | 7 8 8 14 15 20 25 25 25 25 22 Most Carried 25 | 6 8 8 15 15 18 18 25 23 25 24 Average Carried 16 | 4 7 7 10 14 15 17 19 20 20 20 Final Capacity 25 | 8 8 8 15 15 25 25 25 25 25 5 Final Carried 24 | 6 8 8 15 15 18 17 24 16 24 5 Class Distribution -------------------- 25% | Hacker-Skirmisher 17% | Scavenger-Skirmisher 17% | Skirmisher 14% | Mutant 11% | Scavenger-Mutant 5% | Scavenger-Tank 3% | Hacker-Mutant Dominant Class ---------------- Mutant | -10/Materials Mutant | -9/Materials Scavenger-Mutant | -8/Materials Skirmisher | -7/Factory Hacker-Skirmisher | -6/Factory Hacker-Assassin | -6/Waste Skirmisher | -6/Factory Hacker-Skirmisher | -5/Factory Scavenger-Skirmisher | -4/Factory Scavenger-Tank | -3/Research Resources | -11 -10 -9 -8 -7 -6 -6 -6 -5 -4 -3 ----------- Run | Yrd Mat Mat Mat Fac Fac Was Fac Fac Fac Res Matter Collected 2287 | 231 104 118 281 159 . . 606 395 307 86 Remotely . | . . . . . . . . . . . Salvage Created 6163 | 63 104 748 851 254 203 . 1539 1186 810 405 Parts 280 | 16 8 47 41 19 4 . 52 36 34 23 Haulers Intercepted 1 | . . 1 . . . . . . . . Recyclers Shooed 15 | . . . 4 . . . 5 3 2 1 Parts Field Recycled . | . . . . . . . . . . . Retrieved Matter . | . . . . . . . . . . . Parts Self-Destructed . | . . . . . . . . . . . Prevented . | . . . . . . . . . . . Kills | -11 -10 -9 -8 -7 -6 -6 -6 -5 -4 -3 ------- Run | Yrd Mat Mat Mat Fac Fac Was Fac Fac Fac Res Combat Hostiles Destroyed 92 | . 2 16 19 4 1 . 21 13 11 5 Melee 1 | . . . 1 . . . . . . . Guns 60 | . 2 14 11 3 . . 13 8 6 3 Cannons 5 | . . . . . . . . . 4 1 AOE 11 | . . 1 7 . . . . 3 . . Classes Destroyed 16 | 1 2 5 4 3 . . 1 . . . Worker 12 | . . . 2 . . . 5 1 3 1 Builder 7 | . . 1 1 1 . . 2 1 1 . Tunneler 9 | 4 . 1 . 1 . . . 2 1 . Hauler 1 | . . 1 . . . . . . . . Recycler 10 | . . . 4 . 1 . 2 3 . . Mechanic 2 | . . . 1 . . . 1 . . . Operator 5 | . 1 . 1 2 . . 1 . . . Watcher 2 | . . 1 . . . . . . 1 . Swarmer 22 | . . 5 10 . . . 3 4 . . Grunt 30 | . 2 7 6 . . . 10 2 3 . Brawler 2 | . . . 1 . . . 1 . . . Duelist 2 | . . . . . . . 2 . . . Sentry 18 | . . 4 2 1 1 . 2 3 2 3 Hunter 3 | . . . . 1 . . . 1 1 . Programmer 14 | . . . . 1 . . 3 3 5 2 Heavy 1 | . . . . 1 . . . . . . Best Kill Streak 8 | 3 2 6 8 2 1 . 4 6 4 3 Combat Bots Only 6 | . 2 6 5 1 1 . 3 5 3 2 Max Kills in Single Turn 2 | 1 1 2 2 2 1 . 1 2 1 1 Gunslinging 1 | . . 1 1 . . . . . . . Exploded 2 | . . 1 2 . . . . 2 . . Melee 1 | . . . 1 . . . . . . . Uniques/NPCs Destroyed . | . . . . . . . . . . . Combat | -11 -10 -9 -8 -7 -6 -6 -6 -5 -4 -3 -------- Run | Yrd Mat Mat Mat Fac Fac Was Fac Fac Fac Res Hostile Shots Fired 812 | . 6 78 85 38 27 1 245 91 81 160 Missed 239 | . 2 21 21 12 14 . 74 23 34 38 Hits 573 | . 4 57 64 26 13 1 171 68 47 122 Melee 23 | . . . . . . 1 9 . . 13 Projectile 550 | . 4 57 64 26 13 . 162 68 47 109 AOE 1 | . . . . . . . . . 1 . Critical Strikes 32 | . . 3 1 3 . . 6 8 1 10 Part Disruptions 1 | . . . . . . . . . 1 . Damage Taken 9945 | . 46 668 703 454 99 32 2397 1779 1051 2716 Core 2751 | . . 143 111 60 5 . 454 566 96 1316 Absorbed by Shields 298 | . . 84 . . . . . . . 214 Regen/Repaired (Parts) 627 | . . . 2 . . . . 23 602 . Core Remaining (%) 76 | 100 100 64 79 91 . . 46 43 91 . Volleys Fired 363 | 8 5 41 58 17 7 . 115 49 40 23 Largest 3 | 2 2 2 2 2 2 . 2 3 3 3 Hottest 287 | 40 90 90 160 160 135 . 170 268 287 287 Shots Fired 774 | 16 10 79 92 35 14 . 221 129 118 60 Gun 735 | 16 10 79 87 35 14 . 221 127 102 44 Cannon 32 | . . . . . . . . . 16 16 Launcher 7 | . . . 5 . . . . 2 . . Special . | . . . . . . . . . . . Kinetic 27 | 16 . . 11 . . . . . . . Thermal 635 | . . 2 58 35 14 . 221 127 118 60 Explosive 7 | . . . 5 . . . . 2 . . Electromagnetic 105 | . 10 77 18 . . . . . . . Robot Hit Streak 27 | 3 5 19 13 10 8 . 16 17 27 16 Robot Miss Streak 13 | 2 2 4 13 3 2 . 3 5 3 3 Penetration Max . | . . . . . . . . . . . Secondary Targets 6 | . 1 2 2 . . . 1 . . . Max Gunslinging Chain 1 | . 1 1 1 . . . 1 . . . Shots Hit Robots 560 | 8 7 64 68 30 10 . 157 87 87 42 Core Hits 327 | 4 6 38 76 18 8 . 74 45 41 17 Critical Kills 2 | . . . . . . . 1 . . 1 Critical Parts Destroyed 1 | . . . . . . . . 1 . . Critical Strikes 29 | . . . 1 . 1 . 20 3 1 3 Burn 25 | . . . . . 1 . 19 2 1 2 Meltdown 1 | . . . . . . . . . . 1 Destroy 2 | . . . . . . . 1 1 . . Corrupt 1 | . . . 1 . . . . . . . Melee Attacks 23 | . . . . 7 . 8 3 . 2 3 Impact 23 | . . . . 7 . 8 3 . 2 3 Slashing . | . . . . . . . . . . . Piercing . | . . . . . . . . . . . Sneak Attacks . | . . . . . . . . . . . Combat Hostiles . | . . . . . . . . . . . Follow-up Attacks . | . . . . . . . . . . . Damage Inflicted 12595 | 107 97 900 1400 658 218 . 3219 2336 2346 1314 Guns 10999 | 107 97 822 996 658 218 . 3219 2038 1891 953 Cannons 811 | . . . . . . . . . 455 356 Explosions 755 | . . 78 379 . . . . 298 . . Melee . | . . . . . . . . . . . Ramming 30 | . . . 25 . . . . . . 5 Kinetic 154 | 107 . . 47 . . . . . . . Thermal 10657 | . . 89 780 658 218 . 3219 2038 2346 1309 Explosive 644 | . . . 346 . . . . 298 . . Electromagnetic 1110 | . 97 811 202 . . . . . . . Impact . | . . . . . . . . . . . Slashing . | . . . . . . . . . . . Piercing . | . . . . . . . . . . . Highest Corruption 22 | . . . . 2 . 6 22 2 7 10 Average Corruption 11 | . . . . 1 . 6 19 1 4 7 Corruption Purged 4 | . . . . . . . 4 . . . Corruption Blocked . | . . . . . . . . . . . Effects 141 | . . . . 4 . 5 94 6 29 3 Message Errors 33 | . . . . . . 1 19 3 9 1 Matter Fused 28 | . . . . 1 . 1 18 . 8 . Heat Flow Errors 16 | . . . . . . . 12 1 3 . Energy Discharges 10 | . . . . . . . 7 . 2 1 Parts Rejected 5 | . . . . . . 1 3 . 1 . Parts Fused 1 | . . . . . . . 1 . . . Data Loss (minor) 14 | . . . . . . 1 10 2 1 . Data Loss (major) 8 | . . . . 2 . 1 3 . 2 . Misfires 5 | . . . . 1 . . 4 . . . Alerts 5 | . . . . . . . 3 . 1 1 Misdirections 1 | . . . . . . . 1 . . . Weapon Failures 15 | . . . . . . . 13 . 2 . Overload Shots 1 | . . . . . . . . 1 . . Overflow Damage 33 | . . . 6 . . . . . 21 6 Projectiles 27 | . . . . . . . . . 21 6 Explosions 6 | . . . 6 . . . . . . . Melee . | . . . . . . . . . . . Knockbacks . | . . . . . . . . . . . Impact . | . . . . . . . . . . . Kinetic . | . . . . . . . . . . . Secondary . | . . . . . . . . . . . Self-Inflicted Damage 120 | . . 29 89 . . . . . . 2 Shots 3 | . . 1 2 . . . . . . . Rammed 6 | . . . 4 . . . . . . 2 Targets Rammed 6 | . . . 4 . . . . . . 2 Kicked . | . . . . . . . . . . . Crushed . | . . . . . . . . . . . Highest Temperature 566 | 6 102 234 24 72 7 . 281 566 495 383 Average Temperature 99 | 6 46 88 7 17 4 . 84 152 113 165 Received Heat Transfer 1809 | . 24 280 108 24 30 . 657 108 81 497 Effects 14 | . . . . . . . . 14 . . Shutdowns 4 | . . . . . . . . 4 . . Interference 3 | . . . . . . . . 3 . . Matter Decay 1 | . . . . . . . . 1 . . Short Circuit 2 | . . . . . . . . 2 . . Damage (minor) 1 | . . . . . . . . 1 . . Damage (core) 3 | . . . . . . . . 3 . . Siege Activations . | . . . . . . . . . . . Martial Activations . | . . . . . . . . . . . Shielding Activations . | . . . . . . . . . . . Robots Disrupted . | . . . . . . . . . . . Combat Hostiles . | . . . . . . . . . . . Robots Corrupted 1 | . . 1 . . . . . . . . Combat Hostiles 1 | . . 1 . . . . . . . . Parts Fried 4 | . . 3 1 . . . . . . . Impact Corruptions . | . . . . . . . . . . . Robots Melted 15 | . . . . 1 1 . 9 2 1 1 Combat Hostiles 14 | . . . . 1 1 . 8 2 1 1 Parts Melted 87 | . . 1 5 5 3 . 33 25 11 4 Heat Transferred 22052 | . . 125 1330 1435 572 . 9493 3830 3565 1702 Parts Sabotaged . | . . . . . . . . . . . Parts Stolen . | . . . . . . . . . . . Parts Stripped . | . . . . . . . . . . . Power Chain Reactions 2 | . . 1 1 . . . . . . . Alert | -11 -10 -9 -8 -7 -6 -6 -6 -5 -4 -3 ------- Run | Yrd Mat Mat Mat Fac Fac Was Fac Fac Fac Res Maximum Alert Level 1 | . . . 1 . . . . . . 1 Low Security (%) 97 | 100 100 100 90 100 100 100 100 100 100 83 Level 1 2 | . . . 9 . . . . . . 16 Level 2 . | . . . . . . . . . . . Level 3 . | . . . . . . . . . . . Level 4 . | . . . . . . . . . . . Level 5 . | . . . . . . . . . . . High Security . | . . . . . . . . . . . Max Security . | . . . . . . . . . . . Peak Influence 304 | 10 40 164 304 54 30 1 145 101 90 237 Initial 54 | . . 16 44 31 25 1 . 54 14 29 Average 49 | 1 5 82 133 9 5 . 38 40 35 87 Influence Increases 3427 | 20 64 530 624 182 35 4 714 439 385 430 Destroy 0b10 Robot/C 1840 | . 40 320 380 80 20 . 420 260 220 100 Destroy 0b10 Robot/NC 240 | 20 5 20 45 20 5 . 55 35 30 5 Destroy Leader 506 | . 10 94 70 40 10 . 110 70 62 40 Successful Hack 159 | . 9 4 22 35 . . 36 10 25 18 Disable Machine 60 | . . . 15 . . . 15 15 15 . Anti-Garrison Action 150 | . . . . . . . . . . 150 Destroy Structure 112 | . . 2 32 7 . 4 3 34 18 12 Partial Spotted 15 | . . 15 . . . . . . . . Lose Combat Pursuer 345 | . . 75 60 . . . 75 15 15 105 Influence Decreases 3257 | 20 24 463 661 198 84 9 602 521 358 317 Entered New Map 261 | . . 24 63 39 29 4 . 58 16 28 Time Decay 2144 | 20 24 239 368 139 55 4 491 323 322 159 Lost Part 552 | . . 80 80 . . 1 111 130 20 130 Purge Threat 300 | . . 120 150 20 . . . 10 . . Squads Dispatched 33 | . 1 2 1 5 1 . 11 4 3 5 Investigation 5 | . 1 1 . 2 . . 1 . . . Extermination 10 | . . . . 1 1 . 3 1 3 1 Reinforcement 10 | . . 1 1 2 . . 3 2 . 1 Assault 2 | . . . . . . . . . . 2 Garrison 6 | . . . . . . . 4 1 . 1 Intercept . | . . . . . . . . . . . Searches Triggered . | . . . . . . . . . . . Construction Impeded 1 | . . . . . . . . 1 . . Haulers Reinforced . | . . . . . . . . . . . Active Scanning Responses . | . . . . . . . . . . . Cargo Convoy Interrupts 1 | . . . . 1 . . . . . . Stealth | -11 -10 -9 -8 -7 -6 -6 -6 -5 -4 -3 --------- Run | Yrd Mat Mat Mat Fac Fac Was Fac Fac Fac Res Distress Signals 8 | . . 3 . . . . 1 . 4 . Communications Jammed . | . . . . . . . . . . . Distress Signals . | . . . . . . . . . . . Times Spotted 180 | . 4 29 27 6 1 6 39 19 20 29 Peak Tracking Total 20 | . 2 9 4 2 1 6 3 5 4 20 Tactical Retreats 16 | . . 5 2 . . 2 4 1 1 1 Traps | -11 -10 -9 -8 -7 -6 -6 -6 -5 -4 -3 ------- Run | Yrd Mat Mat Mat Fac Fac Was Fac Fac Fac Res Traps Triggered 8 | . 1 . . . 1 . 4 1 1 . Indirectly . | . . . . . . . . . . . Trap Hack Attempts . | . . . . . . . . . . . Triggered . | . . . . . . . . . . . Disarmed . | . . . . . . . . . . . Reprogrammed . | . . . . . . . . . . . Reused . | . . . . . . . . . . . Traps Extracted . | . . . . . . . . . . . Installed . | . . . . . . . . . . . Triggered . | . . . . . . . . . . . Machines | -11 -10 -9 -8 -7 -6 -6 -6 -5 -4 -3 ---------- Run | Yrd Mat Mat Mat Fac Fac Was Fac Fac Fac Res Machines Disabled 5 | . . . 1 . . . 1 1 1 1 Max in Single Turn 1 | . . . 1 . . . 1 1 1 1 Garrison Access 1 | . . . . . . . . . . 1 Machines Repaired . | . . . . . . . . . . . Machines Dismantled . | . . . . . . . . . . . Machines Sabotaged . | . . . . . . . . . . . Overloaded Fab Kills . | . . . . . . . . . . . Hacking | -11 -10 -9 -8 -7 -6 -6 -6 -5 -4 -3 --------- Run | Yrd Mat Mat Mat Fac Fac Was Fac Fac Fac Res Machines Accessed 42 | . 3 3 7 7 . . 5 4 9 4 Terminals 27 | . 3 2 4 5 . . 5 3 4 1 Fabricators 1 | . . . . . . . . . 1 . Repair Stations 4 | . . . 1 . . . . 1 2 . Recycling Units . | . . . . . . . . . . . Scanalyzers 8 | . . 1 2 2 . . . . 1 2 Garrison Access 2 | . . . . . . . . . 1 1 Total Hacks 146 | . 7 10 28 24 . . 13 12 41 11 Successful 80 | . 4 5 21 12 . . 3 5 27 3 Failed 66 | . 3 5 7 12 . . 10 7 14 8 Catastrophic 15 | . . . 2 3 . . 4 2 3 1 Database Lockouts . | . . . . . . . . . . . Manual 78 | . 5 7 8 16 . . 12 9 16 5 Terminals 94 | . 7 7 14 20 . . 13 9 19 5 Fabricators 1 | . . . . . . . . . 1 . Repair Stations 17 | . . . 2 . . . . 3 12 . Recycling Units . | . . . . . . . . . . . Scanalyzers 31 | . . 3 12 4 . . . . 7 5 Garrison Access 3 | . . . . . . . . . 2 1 Terminal Hacks 22 | . 1 1 4 7 . . . 1 8 . Record 2 | . . . . 2 . . . . . . Prototype ID Bank 1 | . . . 1 . . . . . . . Level Access Points 2 | . . . 1 . . . . . 1 . Branch Access Points 1 | . 1 . . . . . . . . . Emergency Access Points 2 | . . . . 1 . . . . 1 . Terminal Index 3 | . . . . 1 . . . . 2 . Repair Station Index 1 | . . . . . . . . . 1 . Scanalyzer Index 2 | . . . . 1 . . . . 1 . Alert Level 3 | . . . 1 1 . . . . 1 . Unreport Threat 4 | . . 1 1 1 . . . 1 . . Zone Layout 1 | . . . . . . . . . 1 . Fabricator Hacks 1 | . . . . . . . . . 1 . Build 1 | . . . . . . . . . 1 . Repair Station Hacks 14 | . . . 2 . . . . 2 10 . Scan Component 7 | . . . 1 . . . . 1 5 . Repair 7 | . . . 1 . . . . 1 5 . Recycling Unit Hacks . | . . . . . . . . . . . Scanalyzer 22 | . . 2 11 1 . . . . 6 2 Insert Component 11 | . . 1 5 1 . . . . 3 1 Analyze 11 | . . 1 6 . . . . . 3 1 Garrison Access Hacks . | . . . . . . . . . . . Unauthorized Hacks 21 | . 3 2 4 4 . . 3 2 2 1 Terminals 21 | . 3 2 4 4 . . 3 2 2 1 Botnet 21 | . 3 2 4 4 . . 3 2 2 1 Fabricators . | . . . . . . . . . . . Repair Stations . | . . . . . . . . . . . Recycling Units . | . . . . . . . . . . . Scanalyzers . | . . . . . . . . . . . Garrison Access . | . . . . . . . . . . . Data Cores Recovered 2 | . 1 . . 1 . . . . . . Used . | . . . . . . . . . . . Hacking Detections 39 | . 3 3 5 7 . . 5 4 8 4 Full Trace Events 4 | . . 1 . 2 . . 1 . . . Feedback Events . | . . . . . . . . . . . Feedback Blocked . | . . . . . . . . . . . Robot Schematics Acquired . | . . . . . . . . . . . Robots Built . | . . . . . . . . . . . Authchips . | . . . . . . . . . . . Time . | . . . . . . . . . . . Total Robot Build Rating . | . . . . . . . . . . . Part Schematics Acquired 9 | . . 1 5 . . . . . 2 1 Parts Built 2 | . . . . . . . . . 2 . Authchips . | . . . . . . . . . . . Time 69 | . . . . . . . . . 69 . Total Part Build Rating 18 | . . . . . . . . . 18 . Parts Repaired 7 | . . . 1 . . . . 1 5 . Time 241 | . . . 26 . . . . 25 190 . Parts Recycled . | . . . . . . . . . . . Recycled Matter . | . . . . . . . . . . . Retrieved Matter . | . . . . . . . . . . . Retrieved Components . | . . . . . . . . . . . Parts Scanalyzed 9 | . . 1 5 . . . . . 2 1 Part Schematics Acquired 9 | . . 1 5 . . . . . 2 1 Parts Damaged . | . . . . . . . . . . . Bothacking | -11 -10 -9 -8 -7 -6 -6 -6 -5 -4 -3 ------------ Run | Yrd Mat Mat Mat Fac Fac Was Fac Fac Fac Res Used RIF Installer . | . . . . . . . . . . . Robots Hacked . | . . . . . . . . . . . Non-combat . | . . . . . . . . . . . Combat . | . . . . . . . . . . . Robot Hacks Applied . | . . . . . . . . . . . Relay Couplers Released 1 | . . . . . . . . . . 1 Machine Destruction 1 | . . . . . . . . . . 1 Fabnet Peak Effective % . | . . . . . . . . . . . Robots Rewired . | . . . . . . . . . . . Allies Hacked . | . . . . . . . . . . . Hacks Repelled . | . . . . . . . . . . . Allies | -11 -10 -9 -8 -7 -6 -6 -6 -5 -4 -3 -------- Run | Yrd Mat Mat Mat Fac Fac Was Fac Fac Fac Res Total Allies . | . . . . . . . . . . . Largest Group . | . . . . . . . . . . . Highest-Rated Group . | . . . . . . . . . . . Highest-Rated Ally . | . . . . . . . . . . . Total Orders . | . . . . . . . . . . . Ally Attacks . | . . . . . . . . . . . Total Damage . | . . . . . . . . . . . Kills . | . . . . . . . . . . . Allies Corrupted . | . . . . . . . . . . . Allies Melted . | . . . . . . . . . . . Intel | -11 -10 -9 -8 -7 -6 -6 -6 -5 -4 -3 ------- Run | Yrd Mat Mat Mat Fac Fac Was Fac Fac Fac Res Active Infowar (turns) 6582 | 27 157 351 500 798 266 115 1821 902 1207 438 Sensors 5100 | . . . . 711 248 114 1633 801 1187 406 IFF 32 | . . . . . . . . . . 32 Terrain 18 | 18 . . . . . . . . . . Seismic 517 | 9 157 351 . . . . . . . . Machine Analysis 6015 | . . . 500 798 266 115 1821 902 1207 406 Robot Analysis Total . | . . . . . . . . . . . Derelict Logs Recovered . | . . . . . . . . . . . Drone Launches . | . . . . . . . . . . . Drone Recoveries . | . . . . . . . . . . . Exploration | -11 -10 -9 -8 -7 -6 -6 -6 -5 -4 -3 ------------- Run | Yrd Mat Mat Mat Fac Fac Was Fac Fac Fac Res Turns Passed 7305 | 116 157 608 850 798 266 115 1821 902 1207 465 Spaces Moved 3984 | 83 134 417 526 533 173 79 702 457 573 307 Core 111 | 2 . . . . . . . . . 109 Treads 197 | . . 13 55 5 . . 124 . . . Legs . | . . . . . . . . . . . Wheels 3676 | 81 134 404 471 528 173 79 578 457 573 198 Hover . | . . . . . . . . . . . Flight . | . . . . . . . . . . . Fastest Speed 50 | 50 90 90 90 105 95 116 116 117 112 50 Average Speed 125 | 89 90 92 110 107 128 116 184 127 128 117 Slowest Speed 312 | 100 90 160 160 305 155 116 312 160 155 155 Overloaded Moves . | . . . . . . . . . . . Propulsion Burnouts . | . . . . . . . . . . . Robots Hopped . | . . . . . . . . . . . Potential Cave-ins 3 | . . . . . . 3 . . . . Cave-ins Triggered . | . . . . . . . . . . . Exploration Rate (%) 26 | 6 22 41 44 17 6 91 22 14 17 8 Regions Visited 10 Branch Regions . Pre-discovered Areas . | . . . . . . . . . . . Known Exits Taken 5 | . . . 1 1 . . 1 1 1 . Unknown Exits Taken 3 | 1 1 1 . . . . . . . . Scrap Searched . | . . . . . . . . . . . Spaces Dug 18 | . . . . 6 . 8 2 . 2 . Terrain Destroyed 81 | . . 1 34 6 . 8 2 20 5 5 Melee 18 | . . . . 6 . 8 2 . 2 . Projectile 10 | . . . . . . . . 2 3 5 AOE 53 | . . 1 34 . . . . 18 . . Terrain Rammed . | . . . . . . . . . . . Walls Destroyed . | . . . . . . . . . . . Machines Disabled . | . . . . . . . . . . . Actions | -11 -10 -9 -8 -7 -6 -6 -6 -5 -4 -3 --------- Run | Yrd Mat Mat Mat Fac Fac Was Fac Fac Fac Res Total 5472 | 105 161 560 702 707 203 89 975 663 948 359 Wait 711 | . 11 72 43 115 . . 71 109 280 10 Move 3975 | 82 133 416 525 532 173 78 701 456 572 307 Hop . | . . . . . . . . . . . Pick Up 120 | 6 5 11 26 9 7 . 25 9 19 3 Fast Attach 66 | 8 2 5 11 2 4 1 11 8 11 3 Attach 61 | . . 6 8 5 2 1 16 14 6 3 Detach 4 | . . . 1 . . . 1 1 1 . Swap 63 | . . 3 7 9 3 1 18 10 10 2 Drop 72 | 1 5 6 19 11 7 . 6 7 7 3 Fire 363 | 8 5 41 58 17 7 . 115 49 40 23 Melee 23 | . . . . 7 . 8 3 . 2 3 Ram 6 | . . . 4 . . . . . . 2 Kick . | . . . . . . . . . . . Crush . | . . . . . . . . . . . Escape Stasis 8 | . . . . . . . 8 . . . Rewire . | . . . . . . . . . . . Trap . | . . . . . . . . . . . Miscellaneous . | . . . . . . . . . . . Route ------- -11/Scrapyard -10/Materials (discovered 3 exits: *Mat / Min x2) -9/Materials (discovered 6 exits: *Mat x2 / [*Min x2] / [*Sto x2]) -8/Materials (discovered 3 exits: *Fac x3) -7/Factory -6/Factory -6/Waste -6/Factory -5/Factory (discovered 2 exits: *Fac x2) -4/Factory (discovered 5 exits: *Res x4 / *Upp) -3/Research History --------- Turn | Location | Event 18 | -11/Scrapyard | Discovered new exit (range 16) 117 | -11/Scrapyard | Entered Materials 165 | -10/Materials | Identified exit to Mines 179 | -10/Materials | Discovered new exit (range 16) 274 | -10/Materials | Entered another Materials area 274 | -9/Materials | Evolved 2 slots: Utility x2 285 | -9/Materials | Discovered new exit (range 8) 295 | -9/Materials | Discovered new exit (range 16) 314 | -9/Materials | Build established: Mutant 436 | -9/Materials | Discovered new exit (range 15) 668 | -9/Materials | Lost 8 parts (1p1n3u3w) 700 | -9/Materials | Discovered new exit (range 16) 802 | -9/Materials | Discovered new exit (range 2) 864 | -9/Materials | Discovered new exit (range 15) 881 | -9/Materials | Build established: Scavenger-Mutant 882 | -9/Materials | Entered another Materials area 882 | -8/Materials | Evolved 2 slots: Utility x2 1019 | -8/Materials | Repaired Corrupted Hacking Suite 1066 | -8/Materials | Lost 3 parts (1u2w) 1710 | -8/Materials | Discovered new exit (range 4) 1726 | -8/Materials | Identified exit to Factory 1732 | -8/Materials | Entered Factory 1732 | -7/Factory | Evolved 2 slots: Propulsion x1, Utility x1 2020 | -7/Factory | Build established: Skirmisher 2458 | -7/Factory | Cargo convoy interrupted 2496 | -7/Factory | Discovered new exit (range 7) 2521 | -7/Factory | Identified exit to Factory 2529 | -7/Factory | Found Prototype Device 2530 | -7/Factory | Entered another Factory area 2530 | -6/Factory | Evolved 2 slots: Propulsion x1, Utility x1 2796 | -6/Factory | Sucked down chute 2796 | -6/Factory | Entered Waste 2805 | -6/Waste | Spotted C-40 Crusher 2806 | -6/Waste | Spotted C-40 Crusher 2807 | -6/Waste | Spotted C-40 Crusher 2811 | -6/Waste | EMP discharged 2822 | -6/Waste | Crushed by Compactor (1 part destroyed, 1 dropped) 2824 | -6/Waste | Spotted C-40 Crusher 2844 | -6/Waste | Spotted C-40 Crusher 2850 | -6/Waste | Spotted C-40 Crusher 2901 | -6/Waste | Discovered new exit (range 10) 2910 | -6/Waste | Identified exit to Factory 2911 | -6/Waste | EMP discharged 2911 | -6/Waste | System corruption reached 10% 2911 | -6/Waste | Entered Factory 3039 | -6/Factory | Garrison activated, responded to threat 3174 | -6/Factory | Garrison activated, responded to threat 3460 | -6/Factory | Lost 3 parts (1n2u) 3467 | -6/Factory | Spotted B-75 Beast 3549 | -6/Factory | Lost 3 parts (2n1u) 4417 | -6/Factory | Core integrity fell below 50% 4669 | -6/Factory | Discovered new exit (range 15) 4703 | -6/Factory | Identified exit to Factory 4732 | -6/Factory | Entered another Factory area 4732 | -5/Factory | Evolved 2 slots: Power x1, Weapon x1 4775 | -5/Factory | Discovered new exit (range 12) 4855 | -5/Factory | Identified exit to Factory 4952 | -5/Factory | Repaired Adv. Sensor Array 5247 | -5/Factory | Lost 4 parts (1p2n1w) 5252 | -5/Factory | Core integrity fell below 50% 5329 | -5/Factory | Build established: Hacker-Skirmisher 5359 | -5/Factory | Discovered exit to Factory (range 16) 5437 | -5/Factory | Lost 3 parts (1p1n1w) 5485 | -5/Factory | Garrison activated, responded to threat 5634 | -5/Factory | Entered another Factory area 5634 | -4/Factory | Evolved 2 slots: Utility x2 5748 | -4/Factory | Fabricated Lgt. Quantum Reactor (x2) 5935 | -4/Factory | Discovered new exit (range 16) 5950 | -4/Factory | Identified exit to Upper Caves 5997 | -4/Factory | Lost 3 parts (1p2n) 6145 | -4/Factory | Identified exit to Research 6215 | -4/Factory | Repaired Angular Momentum Engine 6261 | -4/Factory | Repaired Imp. Medium Armor Plating 6288 | -4/Factory | Repaired Wheel 6328 | -4/Factory | Build established: Scavenger-Skirmisher 6365 | -4/Factory | Identified Active Sensor Suite 6646 | -4/Factory | Repaired Imp. Medium Armor Plating 6673 | -4/Factory | Repaired Wheel 6841 | -4/Factory | Entered Research 6841 | -3/Research | Evolved 2 slots: Utility x2 7131 | -3/Research | Build established: Scavenger-Tank 7240 | -3/Research | System corruption reached 10% 7247 | -3/Research | Released all parts (8) 7255 | -3/Research | Core integrity fell below 50% 7278 | -3/Research | Lost 13 parts (2p3n5u3w) 7278 | -3/Research | Spotted B-86 Titan 7283 | -3/Research | Core integrity fell below 20% 7306 | -3/Research | Destroyed by G-67 Veteran with Plasma Rifle Last Messages --------------- 07251_ Acquired Lgt. Quantum Reactor. 07252_ System corrupted: IFF burst signal emitted. 07253_ Critical hit (Burn: +50). 07260_ Antiparticle Reservoir explodes. 07260_ M-36 Artificer repairs B-74 Champion. 07262_ R-10 Processor collects Hvy. Armor Plating. 07271_ Critical hit (Burn: +37). 07274_ Acquired IFF Parser. 07277_ System corrupted: Energy discharge (-28). 07277_ O-32 Director: "IFF HANDSHAKE FAILED. SECURING TERMINAL." 07278_ O-32 Director uses terminal to summon reinforcements. 07278_ ALERT: Hostiles spotted, dispatching reinforcements to Terminal R018. 07278_ O-32 Director locks terminal. 07282_ Acquired 6 matter. 07302_ Slug penetrates Wall. Map ----- +----------------------------------------------------+ | ???????????????????????????????????????????# | | ???????????????????????????????????????????# | | ???????????????????????????????????????????# | | ???????????????????????????????????????????# | | ???????????????????????????????? ????????# | | ??????????????????????????????# ????????# | | ??????????????????????????????# ????????? | | ??????????????????????????????# #?????????? | | ??????????????????????????????# #############+# | | ??????????????????????? ? ???# | | ????????????????????? ??# | | ????????????????????? #?# | | ?????????????????????? #?# | | ???????????????????????# #?# ######+######## | | ???????????????????????# #?# #?# #??? | | ???????????????????????# k ### #?# #?? | | ???????????????????????#o #?# #?? | | ?????????????????????### ### ! # ?? | | ?????????????????????#"" + # ?? | | ?????????????????????#"" ### = # ? | | ?????????????????????#"" ### # | | ?????????????????????#T % ;## # " | | ?????????????????????#"" g=g # ] #? % | | ?????????????????????#"" * g! ##########??# | | ?????????????????????#"" g ###???????????? | | ?????????????????????### @ BB #?????????????? | | ???????????????????????# bgBB #?????????????? | | ???????????????????????# g;g;;####?##??????????? | | ???????????????????????# g# """"" #??????????? | | ???????????????????????# # ""T"" #??????????? | | ???????????????????????# ; #??????????? | | ???????????????????????# # #??????????? | | ???????????????????????# # #??????????? | | ???????????????????????# # #??????????? | | ?????????#############?# # #??????????? | | ?????????# # # #??????????? | | ?????????# # R ##"########??????????? | | ?????????# + #?????????????????? | | ?????????# # #?????????????????? | | ?????????# ! # #?????????????????? | | ?????????# + #?????????????????? | | ?????????################+####+##????????????????? | | ???????????????????# #????????????????? | | ???????????????????# #????????????????? | | ???????????????????# """ """ #????????????????? | | ???????????????????# """ """ #????????????????? | | ???????????????????# """ """ #????????????????? | | ???????????????????# #????????????????? | | ???????????????????# #????????????????? | | ???????????????????# #????????????????? | +----------------------------------------------------+ Best States ------------- Heat Dissipation 89 Energy Generation 39 Energy Capacity 565 Matter Stores 300 Matter Capacity 300 Sight Range 16 Robot Scan Range 16 Terrain Scan Range 16 Terrain Scan Density 10 Base Temperature (-) 150 Armor Coverage 450 Evasion (%) 50 Targeting Accuracy 6 Recoil Reduction 2 Offensive Hacking 20 Defensive Hacking 20 Item Schematics ----------------- Sensor Array | -9/Materials | Scanalyzed Machine Analyzer | -8/Materials | Scanalyzed Imp. Signal Interpreter | -8/Materials | Scanalyzed Hacking Suite | -8/Materials | Scanalyzed Deuterium Engine | -8/Materials | Scanalyzed Gatling Laser | -8/Materials | Scanalyzed Lgt. Quantum Reactor | -4/Factory | Scanalyzed Imp. Cryofiber Web | -4/Factory | Scanalyzed Micro-nuke Launcher | -3/Research | Scanalyzed Robot Schematics ------------------ None Fabricated ------------ Lgt. Quantum Reactor | x2 | -4/Factory | Preloaded Repaired ---------- Hacking Suite | 80% | -8/Materials | Corrupted Adv. Sensor Array | 4% | -5/Factory Angular Momentum Engine | 10% | -4/Factory Imp. Medium Armor Plating | 13% | -4/Factory Wheel | 2% | -4/Factory Imp. Medium Armor Plating | 1% | -4/Factory Wheel | 7% | -4/Factory Alien Tech Used ----------------- None Achievements -------------- Hey, That's Mine! Tank Challenges ------------ None Game ------ Seed PiercingConceptImmobilizer Manual? 0 Play Time 01:53:10 Cumulative 27.3 hours Start 2025.07.14 @ 20:40:29 End 2025.07.14 @ 22:36:00 Sessions 1 Manual Loads 0 Difficulty Rogue Special Mode None Game No. 36 Rogue 36 Adventurer 0 Explorer 0 Win Type - Total 0 Types 0/0/0/0/0/0/0/0/0/0 Lore% 23 Gallery% 21 Achievement% 23 Wizard Run 0 Options --------- Layout 1 ASCII 0 Keyboard 0 Movement Arrows Keybinds 0 Fullscreen 1 Font 32/SmallcapsGlow Map View 50x35 Zoom Use 0% Tactical HUD 1 Map Filters NONE Filters NONE Steam 1 RUN: 017fe3f3-cf27-45ac-bb5e-8fe68bf1356e